bitfinex/quotes_SOLUSD_20250830
["timestamp","ask_amount","ask_price","bid_price","bid_amount"]
[1756573582756,3.05674862,201.08,201.05,56.13]
[1756573582957,2.99674862,201.07,201.06,38.22]
[1756573583459,0.06,201.08,201.07,13.59559401]
[1756573583641,0.06,201.08,201.07,14.26559401]
[1756573585343,0.06,201.08,201.07,19.23898636]
[1756573585542,4.19601005,201.1,201.07,60.45573498]
[1756573585742,0.06,201.11,201.1,13.59559401]
[1756573585941,0.06,201.11,201.1,110.91234263]
[1756573586159,0.06,201.11,201.1,111.58234263]
[1756573587164,0.06,201.11,201.1,113.55824443]
[1756573587368,0.06,201.11,201.1,116.55499305]
[1756573589373,0.06,201.13,201.12,39.59559401]
[1756573589374,1e-08,201.13,201.12,39.59559401]
[1756573589661,8.87297982,201.21,201.13,13.59559401]
[1756573589872,4.67696977,201.2,201.15,18.27256378]
[1756573590040,4.67696977,201.2,201.17,13.59559401]
[1756573590243,4.67696977,201.2,201.18,38.54]
[1756573590458,4.67696977,201.21,201.18,39.21]
[1756573590675,4.67696977,201.21,201.18,44.18054151]
[1756573591238,4.67696977,201.2,201.18,38.54]
[1756573591565,4.73696977,201.19,201.15,13.59559401]
[1756573591743,4.19601005,201.21,201.16,38.52]
[1756573592061,4.19601005,201.21,201.17,0.68]
[1756573592062,4.67696977,201.2,201.17,0.68]
[1756573592251,4.67696977,201.19,201.18,38.52]
[1756573592862,4.67696977,201.19,201.15,19.24684404]
[1756573593068,4.67696977,201.2,201.16,38.66]
[1756573593372,4.67696977,201.18,201.17,38.66]
[1756573593562,26.0,201.2,201.17,39.34]
[1756573593866,26.0,201.2,201.17,38.66]
[1756573594070,4.19601005,201.23,201.19,13.59559401]
[1756573594071,4.67696977,201.21,201.19,13.59559401]
[1756573594271,30.67696977,201.21,201.2,38.66]
[1756573595361,4.67696977,201.21,201.15,5.65141436]
[1756573595569,4.67696977,201.18,201.16,52.23559401]
[1756573595781,4.67696977,201.18,201.16,52.91559401]
[1756573596379,4.67696977,201.19,201.17,0.68]
[1756573596667,4.67696977,201.19,201.18,52.91559401]
[1756573596967,4.67696977,201.19,201.18,52.23559401]
[1756573597467,4.73696977,201.19,201.18,38.62]
[1756573597769,4.73696977,201.19,201.13,4.97186373]
[1756573597972,26.0,201.17,201.14,38.74]
[1756573598160,26.0,201.17,201.15,14.27559401]
[1756573598470,0.06,201.2,201.16,38.82]
[1756573598765,4.67696977,201.17,201.16,38.82]
[1756573599353,4.67696977,201.17,201.13,5.65187693]
[1756573599553,4.67696977,201.15,201.14,52.39559401]
[1756573599747,4.67696977,201.16,201.15,13.59559401]
[1756573599951,4.67696977,201.17,201.15,14.27559401]
[1756573600159,4.67696977,201.17,201.16,39.48]
[1756573600575,4.67696977,201.17,201.16,44.45116723]
[1756573601070,4.67696977,201.18,201.17,13.59559401]
[1756573601271,4.67696977,201.19,201.17,14.27559401]
[1756573601575,4.67696977,201.19,201.18,53.05559401]
[1756573602164,4.67696977,201.2,201.18,53.05559401]
[1756573602373,4.67696977,201.2,201.18,52.37559401]
[1756573602546,4.67696977,201.2,201.19,0.68]
[1756573602750,4.67696977,201.2,201.18,52.37559401]
[1756573602947,4.67696977,201.2,201.18,57.34618823]
[1756573603152,4.67696977,201.2,201.19,14.27559401]
[1756573605971,4.67696977,201.2,201.19,13.59559401]
[1756573606268,26.0,201.21,201.19,58.00600679]
[1756573606494,4.67696977,201.22,201.2,0.68]
[1756573606785,4.96856764,201.27,201.2,0.68]
[1756573606786,4.67696977,201.23,201.22,13.59559401]
[1756573606962,4.67696977,201.23,201.22,53.01559401]
[1756573607271,4.67696977,201.23,201.22,52.33559401]
[1756573607479,4.67696977,201.23,201.22,53.01559401]
[1756573610683,30.67696977,201.25,201.22,57.98526904]
[1756573610882,0.06,201.23,201.22,57.30526904]
[1756573611483,0.06,201.23,201.22,57.98526904]
[1756573615087,0.06,201.23,201.22,118.76223881]
[1756573615288,0.06,201.23,201.22,114.08526904]
[1756573617364,0.06,201.23,201.22,118.76223881]
[1756573618172,0.06,201.23,201.22,123.43920881]
[1756573618596,0.06,201.23,201.22,123.33920881]
[1756573619176,0.06,201.23,201.22,79.92223904]
[1756573619394,0.06,201.23,201.22,113.20526904]
[1756573619787,0.06,201.23,201.22,113.88526904]
[1756573620289,0.06,201.23,201.22,70.27559401]
[1756573620496,0.06,201.23,201.22,113.18527893]
[1756573620796,0.06,201.23,201.22,113.86527893]
[1756573621668,0.06,201.23,201.22,118.5422487]
[1756573622111,0.06,201.23,201.22,123.2792187]
[1756573626334,0.06,201.23,201.22,74.56527893]
[1756573626497,4.73696977,201.23,201.22,69.59559401]
[1756573626830,4.73696977,201.23,201.22,108.17559401]
[1756573628127,0.06,201.23,201.22,113.14527893]
[1756573629120,4.73696977,201.23,201.18,0.68]
[1756573629301,4.67696977,201.21,201.2,0.03]
[1756573629501,4.67696977,201.21,201.2,52.18559401]
[1756573629701,4.73696977,201.21,201.2,0.03]
[1756573630007,19.68428077,201.21,201.2,38.59]
[1756573630520,19.62428077,201.21,201.2,38.59]
[1756573630820,4.67696977,201.21,201.2,38.59]
[1756573631040,30.67696977,201.21,201.2,38.59]
[1756573633309,26.0,201.21,201.2,38.59]
[1756573633709,4.67696977,201.22,201.21,13.59559401]
[1756573635426,4.67696977,201.22,201.21,14.27559401]
[1756573635625,4.67696977,201.22,201.21,13.59559401]
[1756573636130,0.06,201.23,201.21,19.24547346]
[1756573636326,0.06,201.23,201.22,38.54]
[1756573636706,26.06,201.23,201.22,38.54]
[1756573637125,26.06,201.23,201.22,39.22]
[1756573637324,0.06,201.23,201.22,52.81559401]
[1756573637625,4.73696977,201.23,201.22,52.81559401]
[1756573638326,4.73696977,201.23,201.22,57.78527893]
[1756573638911,0.06,201.23,201.22,62.4622487]
[1756573640412,0.06,201.23,201.22,57.78527893]
[1756573641008,0.06,201.23,201.22,62.4622487]
[1756573642133,0.06,201.23,201.22,62.4222487]
[1756573642320,0.06,201.23,201.22,57.74527893]
[1756573642508,0.06,201.23,201.22,62.4222487]
[1756573644236,0.06,201.23,201.22,118.4222487]
[1756573644530,0.06,201.23,201.22,133.3613717]
[1756573644939,1e-08,201.23,201.22,133.3613717]
[1756573648136,1e-08,201.23,201.22,94.8613717]
[1756573648433,1e-08,201.23,201.22,133.3213717]
[1756573648752,1e-08,201.23,201.22,90.18440193]
[1756573648920,1e-08,201.23,201.22,133.3013717]
[1756573649451,1e-08,201.23,201.22,118.3622487]
[1756573651438,1e-08,201.23,201.22,69.59559401]
[1756573651621,1e-08,201.23,201.22,112.98527893]
[1756573651935,1e-08,201.23,201.22,113.64527893]
[1756573653949,1e-08,201.23,201.22,118.3222487]
[1756573656734,1e-08,201.23,201.22,252.8222487]
[1756573658543,26.06,201.34,201.24,13.59559401]
[1756573658846,14.996892,201.36,201.3,13.59559401]
[1756573659045,0.06,201.35,201.32,13.59559401]
[1756573659226,0.06,201.34,201.33,38.42]
[1756573659747,4.73696977,201.36,201.33,38.42]
[1756573659940,0.06,201.35,201.33,38.42]
[1756573660140,4.67696977,201.36,201.33,38.42]
[1756573660328,26.0,201.37,201.33,38.42]
[1756573660329,4.73696977,201.35,201.33,38.42]
[1756573661351,4.73696977,201.34,201.33,38.42]
[1756573661524,26.0,201.35,201.33,38.42]
[1756573661932,26.06,201.35,201.32,18.56260613]
[1756573662153,26.06,201.35,201.33,52.03559401]
[1756573662528,26.0,201.35,201.33,18.56253875]
[1756573662730,0.06,201.37,201.34,38.44]
[1756573662731,4.73696977,201.37,201.34,38.44]
[1756573663046,26.0,201.36,201.35,38.44]
[1756573663448,4.67696977,201.38,201.35,38.44]
[1756573663647,4.73696977,201.38,201.35,38.44]
[1756573663949,26.0,201.37,201.35,38.44]
[1756573664532,30.73696977,201.37,201.35,38.44]
[1756573664947,30.73696977,201.37,201.34,13.59559401]
[1756573665148,30.73696977,201.37,201.35,38.42]
[1756573665345,30.67696977,201.37,201.35,38.42]
[1756573665545,4.67696977,201.37,201.35,38.42]
[1756573665946,30.67696977,201.38,201.35,38.42]
[1756573666451,30.67696977,201.38,201.36,13.59559401]
[1756573666452,26.0,201.37,201.36,13.59559401]
[1756573666643,26.0,201.37,201.36,52.01559401]
[1756573667142,0.06,201.37,201.36,52.01559401]
[1756573667449,26.06,201.37,201.36,52.01559401]
[1756573667650,0.06,201.37,201.36,52.01559401]
[1756573668357,0.06,201.37,201.36,56.98182364]
[1756573669044,0.06,201.37,201.36,52.01559401]
[1756573670859,4.73696977,201.37,201.36,52.01559401]
[1756573671979,4.73696977,201.37,201.35,13.59559401]
[1756573672164,0.06,201.37,201.36,51.99559401]
[1756573674864,0.06,201.37,201.36,13.59559401]
[1756573675062,0.06,201.37,201.36,51.97559401]
[1756573675761,4.73696977,201.37,201.36,51.97559401]
[1756573675965,0.06,201.37,201.36,13.59559401]
[1756573676154,0.06,201.37,201.36,51.95559401]
[1756573676468,4.73696977,201.37,201.36,51.95559401]
[1756573678275,4.73696977,201.37,201.36,52.61559401]
[1756573678856,4.73696977,201.37,201.36,51.95559401]
[1756573679267,35.70311079,201.37,201.32,55.99999999]
[1756573679501,26.0,201.35,201.33,52.03559401]
[1756573680048,26.0,201.35,201.33,52.69559401]
[1756573680457,26.0,201.36,201.33,52.69559401]
[1756573680658,4.67696977,201.34,201.33,52.69559401]
[1756573680863,4.67696977,201.34,201.33,52.03559401]
[1756573682271,4.67696977,201.34,201.29,5.67771799]
[1756573682469,4.67696977,201.32,201.3,52.72559401]
[1756573682969,4.67696977,201.32,201.3,52.01559401]
[1756573683174,4.67696977,201.32,201.3,52.72559401]
[1756573684071,26.06,201.37,201.32,13.59559401]
[1756573684277,0.06,201.37,201.33,39.13]
[1756573684575,26.06,201.37,201.35,13.59559401]
[1756573684783,26.06,201.37,201.36,52.01559401]
[1756573684961,26.06,201.37,201.36,52.72559401]
[1756573685283,30.73696977,201.37,201.36,52.72559401]
[1756573685878,0.06,201.37,201.36,52.72559401]
[1756573686091,30.73696977,201.37,201.36,52.72559401]
[1756573686881,30.73696977,201.37,201.36,52.01559401]
[1756573688282,26.06,201.37,201.36,52.72559401]
[1756573688476,30.73696977,201.37,201.36,52.01559401]
[1756573688854,30.73696977,201.37,201.36,52.72559401]
[1756573690181,26.06,201.37,201.36,52.72559401]
[1756573690364,30.73696977,201.37,201.36,52.72559401]
[1756573690678,26.06,201.37,201.36,52.72559401]
[1756573690858,30.73696977,201.37,201.36,52.72559401]
[1756573693775,26.06,201.37,201.36,52.72559401]
[1756573693978,30.73696977,201.37,201.36,52.72559401]
[1756573694978,26.06,201.37,201.36,52.72559401]
[1756573695164,0.06,201.37,201.36,52.72559401]
[1756573695584,0.06,201.37,201.36,57.69182364]
[1756573695782,0.06,201.37,201.36,113.69182363]
[1756573696160,0.06,201.37,201.36,118.3687934]
[1756573697262,0.06,201.37,201.36,252.8687934]
[1756573697473,0.06,201.37,201.36,267.7967654]
[1756573697891,1e-08,201.37,201.36,267.7967654]
[1756573699891,1e-08,201.37,201.36,229.3767654]
[1756573700060,1e-08,201.37,201.36,267.7167654]
[1756573700875,1e-08,201.37,201.36,252.7887934]
[1756573701076,1e-08,201.37,201.36,267.7175084]
[1756573702385,1e-08,201.37,201.36,263.04053863]
[1756573702583,1e-08,201.37,201.36,267.7175084]
[1756573702987,1e-08,201.37,201.36,263.04053863]
[1756573703167,1e-08,201.37,201.36,267.7175084]
[1756573704695,1e-08,201.37,201.36,267.7475084]
[1756573707611,1e-08,201.37,201.36,107.925594]
[1756573707793,1e-08,201.37,201.36,113.60182363]
[1756573708100,1e-08,201.37,201.36,118.2587934]
[1756573708672,1e-08,201.37,201.36,113.58182363]
[1756573708888,4.67696978,201.37,201.36,107.985594]
[1756573709300,4.67696978,201.37,201.36,69.625594]
[1756573709473,1e-08,201.37,201.36,69.625594]
[1756573709668,4.73696978,201.37,201.36,52.02559401]
[1756573709873,4.67696978,201.37,201.36,13.62559401]
[1756573710083,4.67696978,201.37,201.36,52.00559401]
[1756573711414,4.73696978,201.37,201.36,52.00559401]
[1756573711575,1e-08,201.37,201.36,52.00559401]
[1756573711903,26.00000001,201.37,201.36,38.41]
[1756573712078,30.67696978,201.37,201.36,38.41]
[1756573713200,4.73696978,201.37,201.36,0.03]
[1756573713368,35.70295279,201.37,201.36,0.03]
[1756573713871,39.88307909,201.37,201.36,0.03]
[1756573717498,35.70295279,201.37,201.36,0.03]
[1756573717674,39.88307909,201.37,201.33,0.03]
[1756573717871,26.0,201.32,201.31,0.03]
[1756573718071,4.67696977,201.32,201.31,0.03]
[1756573718289,4.73696977,201.32,201.31,0.03]
[1756573718495,23.00953354,201.32,201.24,55.99999999]
[1756573718796,23.00953354,201.32,201.24,13.59559401]
[1756573718797,4.67696977,201.25,201.24,13.59559401]
[1756573719000,4.67696977,201.25,201.24,52.73559401]
[1756573720591,4.67696977,201.3,201.24,113.41256377]
[1756573720876,4.67696977,201.3,201.26,13.59559401]
[1756573721094,4.67696977,201.3,201.28,13.59559401]
[1756573721402,4.67696977,201.3,201.29,52.75559401]
[1756573723100,4.67696977,201.3,201.29,52.05559401]
[1756573723305,4.67696977,201.3,201.27,0.7]
[1756573723610,26.06,201.3,201.29,38.46]
[1756573723779,26.0,201.3,201.28,38.46]
[1756573723982,14.940611,201.31,201.29,14.29559401]
[1756573724278,26.0,201.33,201.3,39.16]
[1756573724514,26.0,201.31,201.3,39.16]
[1756573724822,4.67696977,201.33,201.31,13.59559401]
[1756573724979,30.67696977,201.33,201.32,38.48]
[1756573725392,14.936892,201.36,201.32,38.48]
[1756573725393,1e-08,201.37,201.32,52.77559401]
[1756573725600,4.67696977,201.34,201.33,0.7]
[1756573725901,30.67696977,201.34,201.33,0.7]
[1756573726278,30.67696977,201.34,201.32,52.07559401]
[1756573726475,30.67696977,201.34,201.32,52.77559401]
[1756573727400,30.67696977,201.34,201.33,38.46]
[1756573730384,4.67696977,201.34,201.33,52.05559401]
[1756573730585,4.67696978,201.37,201.34,13.59559401]
[1756573730802,4.67696978,201.37,201.35,39.18]
[1756573731007,30.67696978,201.37,201.36,0.7]
[1756573731178,4.67696978,201.37,201.36,0.7]
[1756573731385,30.67696978,201.37,201.36,0.7]
[1756573731689,26.00000001,201.37,201.36,5.66622963]
[1756573731895,1e-08,201.37,201.36,5.66622963]
[1756573732095,1e-08,201.37,201.36,0.7]
[1756573732492,1e-08,201.37,201.36,19.26182364]
[1756573734521,1e-08,201.37,201.36,75.26182363]
[1756573735822,1e-08,201.37,201.36,70.295594]
[1756573736027,1e-08,201.37,201.36,75.26182363]
[1756573740320,1e-08,201.37,201.36,56.0]
[1756573740321,30.67696978,201.37,201.36,56.0]
[1756573740524,30.73696978,201.37,201.3,0.7]
[1756573740703,4.67696977,201.32,201.31,52.05559401]
[1756573740909,4.67696977,201.32,201.31,52.75559401]
[1756573741112,4.67696977,201.33,201.31,14.29559401]
[1756573741313,40.99466101,201.37,201.32,38.46]
[1756573741314,4.67696977,201.34,201.32,38.46]
[1756573741510,4.67696977,201.33,201.32,38.46]
[1756573741712,4.67696977,201.33,201.32,52.05559401]
[1756573742538,4.67696977,201.33,201.32,52.76559401]
[1756573742824,4.67696977,201.33,201.32,52.05559401]
[1756573743904,4.67696977,201.33,201.32,38.44]
[1756573744425,4.67696977,201.33,201.31,38.47]
[1756573744630,4.67696977,201.32,201.31,38.47]
[1756573745913,19.61534877,201.32,201.31,38.47]
[1756573746743,4.67696977,201.32,201.31,38.47]
[1756573747827,4.67696977,201.32,201.31,0.03]
[1756573749035,9.41393954,201.32,201.31,0.03]
[1756573749547,13.45306883,201.32,201.31,0.03]
[1756573749914,4.67696977,201.32,201.31,0.03]
[1756573751230,4.73696977,201.32,201.31,0.03]
[1756573751614,9.41393954,201.32,201.31,0.03]
[1756573751814,13.30838374,201.32,201.31,0.03]
[1756573752144,26.0,201.29,201.28,0.03]
[1756573752348,4.67696977,201.29,201.28,0.03]
[1756573752520,30.67696977,201.29,201.28,0.03]
[1756573753619,4.73696977,201.29,201.28,0.03]
[1756573754020,9.70492644,201.29,201.28,0.03]
[1756573754413,26.0,201.27,201.26,0.03]
[1756573754614,30.67696977,201.27,201.26,0.03]
[1756573754819,30.16732033,201.27,201.26,0.74]
[1756573755036,4.67696977,201.27,201.26,0.74]
[1756573755215,4.67696977,201.27,201.26,0.03]
[1756573755728,30.67696977,201.27,201.26,0.03]
[1756573756114,35.70542011,201.27,201.26,0.03]
[1756573756310,35.64542011,201.27,201.26,0.03]
[1756573756515,39.81274044,201.27,201.26,0.03]
[1756573756914,39.87274044,201.27,201.26,0.03]
[1756573758315,35.70542011,201.27,201.26,0.03]
[1756573758634,52.29386629,201.27,201.23,0.03]
[1756573758840,4.67696977,201.24,201.23,0.03]
[1756573759437,4.73696977,201.24,201.23,0.03]
[1756573759627,69.33696977,201.24,201.23,0.03]
[1756573760153,32.67004377,201.24,201.23,0.03]
[1756573760634,37.63923478,201.24,201.23,0.03]
[1756573760835,71.31004377,201.24,201.23,0.03]
[1756573761039,32.67004377,201.24,201.23,0.03]
[1756573761614,0.06,201.28,201.23,14.33559401]
[1756573761815,4.67696977,201.26,201.24,14.30559401]
[1756573762144,4.67696977,201.27,201.25,0.71]
[1756573762841,26.0,201.26,201.25,0.71]
[1756573764439,0.06,201.28,201.26,13.59559401]
[1756573764756,0.06,201.28,201.27,14.30559401]
[1756573767027,0.06,201.28,201.27,23.95101412]
[1756573767830,0.06,201.28,201.27,25.94260012]
[1756573770555,0.06,201.28,201.27,21.26563035]
[1756573770869,0.06,201.28,201.27,59.96563035]
[1756573771078,0.06,201.28,201.27,57.97404435]
[1756573771655,0.06,201.28,201.27,14.30559401]
[1756573771827,0.06,201.28,201.27,19.27404435]
[1756573772553,0.06,201.28,201.27,23.95101412]
[1756573773062,0.06,201.28,201.27,79.95101412]
[1756573773225,0.06,201.28,201.27,75.27404435]
[1756573773761,0.06,201.28,201.27,79.95101412]
[1756573774434,0.06,201.28,201.27,75.27404435]
[1756573775660,0.06,201.28,201.27,79.95101412]
[1756573776539,0.06,201.28,201.27,118.69101412]
[1756573776932,0.06,201.31,201.28,13.59559401]
[1756573777136,0.06,201.33,201.3,18.27256378]
[1756573777337,0.06,201.33,201.32,18.27256378]
[1756573777865,0.06,201.33,201.32,23.89978015]
[1756573784752,0.06,201.33,201.32,79.89978015]
[1756573785682,4.73696977,201.33,201.32,13.59559401]
[1756573785980,4.73696977,201.33,201.31,56.0]
[1756573786175,4.73696977,201.33,201.31,52.27559401]
[1756573786176,4.67696977,201.32,201.31,52.27559401]
[1756573787372,4.79696977,201.32,201.27,0.66]
[1756573787539,4.67696977,201.29,201.28,52.29559401]
[1756573789387,4.67696977,201.3,201.29,13.59559401]
[1756573790588,0.06,201.33,201.29,13.59559401]
[1756573790769,4.67696977,201.3,201.29,13.59559401]
[1756573791187,0.06,201.33,201.29,19.22353111]
[1756573791493,0.06,201.33,201.31,13.59559401]
[1756573791667,0.06,201.33,201.32,52.27559401]
[1756573791992,0.06,201.33,201.32,108.27559401]
[1756573792285,0.06,201.33,201.32,108.93559401]
[1756573795289,0.06,201.33,201.32,113.61256378]
[1756573795485,0.06,201.33,201.32,118.57978015]
[1756573796578,0.06,201.33,201.32,113.90281038]
[1756573799888,0.06,201.33,201.32,113.86281038]
[1756573801090,0.06,201.33,201.32,118.53978015]
[1756573801999,0.06,201.36,201.33,69.595594]
[1756573802201,0.06,201.36,201.35,18.27256378]
[1756573802497,0.06,201.36,201.35,74.56207028]
[1756573802800,0.06,201.36,201.35,79.92904005]
[1756573803162,0.06,201.4,201.35,92.84187838]
[1756573803364,0.06,201.4,201.39,18.27256378]
[1756573803564,0.06,201.4,201.39,56.95256378]
[1756573803878,0.06,201.4,201.39,57.64256378]
[1756573804478,0.06,201.4,201.39,62.60805362]
[1756573807192,0.06,201.4,201.39,57.93108385]
[1756573807398,0.06,201.4,201.39,62.60805362]
[1756573808193,30.67696977,201.49,201.43,13.59559401]
[1756573808383,30.67696977,201.49,201.45,13.59559401]
[1756573808576,26.0,201.49,201.47,13.59559401]
[1756573808777,26.0,201.49,201.48,52.23559401]
[1756573810186,30.67696977,201.49,201.48,52.23559401]
[1756573810899,26.0,201.49,201.48,52.23559401]
[1756573811295,30.67696977,201.5,201.49,13.59559401]
[1756573811478,26.0,201.5,201.49,13.59559401]
[1756573811680,30.67696977,201.5,201.49,13.59559401]
[1756573814011,26.0,201.5,201.49,13.59559401]
[1756573815005,30.67696977,201.51,201.49,13.59559401]
[1756573815306,30.67696977,201.51,201.5,52.19559401]
[1756573815500,26.0,201.51,201.5,52.19559401]
[1756573815893,30.67696977,201.51,201.5,52.19559401]
[1756573816206,0.06,201.52,201.51,13.59559401]
[1756573817209,0.06,201.52,201.51,14.28559401]
[1756573817506,0.06,201.52,201.51,79.66509664]
[1756573820593,0.06,201.52,201.51,80.16134992]
[1756573820906,1e-08,201.52,201.51,80.16134992]
[1756573821094,0.06,201.54,201.53,13.59559401]
[1756573821294,0.06,201.54,201.53,56.85256378]
[1756573821519,0.06,201.54,201.53,57.54256378]
[1756573822011,0.12,201.67,201.57,13.59559401]
[1756573822212,4.79696977,201.67,201.63,13.59559401]
[1756573822416,4.67696977,201.64,201.63,52.21559401]
[1756573823694,30.95859851,201.67,201.63,52.21559401]
[1756573823695,30.67696977,201.67,201.63,52.21559401]
[1756573823902,30.67696977,201.67,201.65,13.59559401]
[1756573824099,30.67696977,201.67,201.66,38.62]
[1756573824621,30.67696977,201.67,201.66,52.21559401]
[1756573824802,26.0,201.67,201.66,52.21559401]
[1756573825994,26.0,201.68,201.67,13.59559401]
[1756573826400,26.0,201.69,201.67,13.59559401]
[1756573826614,26.0,201.69,201.68,52.19559401]
[1756573826817,26.0,201.69,201.68,52.21559401]
[1756573827004,0.12,201.71,201.68,52.21559401]
[1756573827199,4.9571209,201.73,201.68,13.59559401]
[1756573827399,0.12,201.72,201.68,52.19559401]
[1756573827693,4.95810402,201.69,201.6,13.59559401]
[1756573828000,4.67696977,201.65,201.62,13.59559401]
[1756573828202,26.0,201.66,201.64,13.59559401]
[1756573828523,26.0,201.66,201.65,13.59559401]
[1756573828727,26.12,201.66,201.6,13.59559401]
[1756573828893,26.12,201.66,201.61,38.62]
[1756573829095,0.12,201.65,201.55,0.69]
[1756573829300,4.67696977,201.57,201.56,38.62]
[1756573829519,4.67696977,201.57,201.56,39.31]
[1756573829715,4.67696977,201.57,201.56,52.90559401]
[1756573829929,4.67696977,201.58,201.56,52.90559401]
[1756573830109,4.67696977,201.59,201.56,52.90559401]
[1756573830718,4.67696977,201.58,201.56,52.90559401]
[1756573831125,4.67696977,201.58,201.56,52.21559401]
[1756573831313,4.67696977,201.58,201.57,0.7]
[1756573831936,4.67696977,201.58,201.56,13.59559401]
[1756573832105,4.96011046,201.61,201.58,13.59559401]
[1756573832426,0.12,201.6,201.58,13.59559401]
[1756573832631,26.0,201.58,201.52,38.7]
[1756573832832,26.0,201.58,201.53,13.59559401]
[1756573832833,0.12,201.57,201.53,13.59559401]
[1756573833027,0.12,201.56,201.53,13.59559401]
[1756573833217,4.67696977,201.54,201.53,13.59559401]
[1756573838131,4.67696977,201.54,201.53,69.33559399]
[1756573839642,0.06,201.57,201.53,69.33559399]
[1756573839837,4.73696977,201.57,201.55,13.59559401]
[1756573840132,0.06,201.57,201.56,39.36]
[1756573840333,0.06,201.57,201.56,57.63256378]
[1756573840840,0.06,201.57,201.56,52.95559401]
[1756573842030,4.73696977,201.57,201.56,52.25559401]
[1756573842422,4.73696977,201.57,201.56,13.59559401]
[1756573842622,4.73696977,201.57,201.56,52.27559401]
[1756573843132,4.73696977,201.57,201.56,52.97559401]
[1756573843355,0.06,201.57,201.56,52.97559401]
[1756573843643,4.73696977,201.57,201.56,52.97559401]
[1756573844616,4.73696977,201.57,201.56,52.27559401]
[1756573844938,4.73696977,201.57,201.56,52.97559401]
[1756573845942,4.73696977,201.57,201.56,52.27559401]
[1756573846613,4.73696977,201.57,201.56,52.97559401]
[1756573846828,4.73696977,201.57,201.56,52.27559401]
[1756573847324,9.69802548,201.57,201.56,13.59559401]
[1756573848438,4.73696977,201.57,201.56,13.59559401]
[1756573848647,9.69802548,201.57,201.56,13.59559401]
[1756573849824,4.73696977,201.57,201.56,14.29559401]
[1756573850121,4.73696977,201.57,201.56,13.59559401]
[1756573850438,4.73696977,201.57,201.55,38.64]
[1756573850439,9.81802548,201.57,201.55,38.64]
[1756573850621,4.67696977,201.56,201.54,13.59559401]
[1756573850822,4.67696977,201.55,201.54,13.59559401]
[1756573853346,9.63851777,201.55,201.54,13.59559401]
[1756573853521,9.63851777,201.55,201.54,13.62559401]
[1756573854851,5.02105571,201.57,201.54,13.62559401]
[1756573855159,4.67696977,201.55,201.54,13.62559401]
[1756573860149,9.63851777,201.55,201.54,13.62559401]
[1756573860460,13.80351434,201.55,201.54,0.03]
[1756573860823,13.92351434,201.55,201.54,0.03]
[1756573861147,9.63851777,201.55,201.54,0.03]
[1756573861457,28.09910834,201.55,201.54,0.03]
[1756573862329,4.961548,201.55,201.54,0.03]
[1756573862528,35.63851777,201.55,201.54,0.7]
[1756573862839,14.355594,201.57,201.54,0.7]
[1756573863164,4.67696977,201.55,201.54,0.7]
[1756573864850,39.92351434,201.55,201.54,0.03]
[1756573865157,50.68203477,201.55,201.54,0.03]
[1756573865328,54.85200269,201.55,201.54,0.03]
[1756573865728,63.08590477,201.55,201.51,0.03]
[1756573865975,30.67696977,201.52,201.51,0.03]
[1756573866639,35.63925639,201.52,201.51,0.03]
[1756573870122,26.0,201.52,201.51,0.7]
[1756573870328,4.67696977,201.52,201.51,0.7]
[1756573871541,9.63925639,201.52,201.51,0.03]
[1756573873458,9.13182295,201.53,201.51,0.7]
[1756573873646,30.67696977,201.52,201.51,0.03]
[1756573873850,4.67696977,201.52,201.51,0.03]
[1756573874251,9.13182295,201.53,201.51,0.03]
[1756573874455,4.67696977,201.52,201.51,0.7]
[1756573875157,4.67696977,201.52,201.51,0.03]
[1756573875364,9.63925639,201.52,201.51,0.03]
[1756573875538,4.96228662,201.52,201.51,0.03]
[1756573875738,9.63925639,201.52,201.51,0.03]
[1756573880362,35.63925639,201.52,201.51,0.03]
[1756573880958,9.63925639,201.52,201.51,0.03]
[1756573881163,18.61136124,201.52,201.51,0.03]
[1756573881466,32.20695524,201.52,201.51,0.03]